lending/lending_fUSD_20240111
["ID","MTS","AMOUNT","RATE_DAILY","PERIOD"]
[311188269,1704976278645,-500.0,0.00039726,4]
[311188270,1704976278657,-2269.43,0.00039726,4]
[311188271,1704976278667,-570.16,0.00039726,4]
[311188272,1704976278676,-1008.72,0.00039726,4]
[311188273,1704976278685,-617.38,0.00039726,4]
[311188274,1704976278695,-500.0,0.00039726,4]
[311188275,1704976278708,-500.0,0.00039726,4]
[311188276,1704976278718,-500.0,0.00039726,4]
[311188277,1704976278727,-589.66844877,0.00039726,4]
[311188278,1704976278737,-500.0,0.00039726,30]
[311188279,1704976278747,-500.0,0.00039726,4]
[311188280,1704976278757,-500.0,0.00039726,4]
[311188281,1704976278766,-500.0,0.00039726,4]
[311188282,1704976278776,-500.0,0.00039726,4]
[311188283,1704976278786,-500.0,0.00039726,4]
[311188284,1704976278795,-500.0,0.00039726,4]
[311188285,1704976278807,-500.0,0.00039726,4]
[311188286,1704976278816,-500.0,0.00039726,4]
[311188287,1704976278825,-614.43,0.00039726,4]
[311188288,1704976278834,-500.0,0.00039726,4]
[311188289,1704976278843,-500.0,0.00039726,4]
[311188290,1704976278852,-500.0,0.00039726,4]
[311188291,1704976278861,-500.0,0.00039726,4]
[311188292,1704976278870,-500.0,0.00039726,4]
[311188293,1704976278879,-500.0,0.00039726,4]
[311188294,1704976278888,-500.0,0.00039726,4]
[311188295,1704976278897,-500.0,0.00039726,4]
[311188296,1704976278906,-500.0,0.00039726,4]
[311188297,1704976278916,-500.0,0.00039726,4]
[311188298,1704976278925,-500.0,0.00039726,4]
[311188299,1704976278934,-500.0,0.00039726,4]
[311188300,1704976278943,-500.0,0.00039726,4]
[311188301,1704976278953,-500.0,0.00039726,4]
[311188302,1704976278963,-500.0,0.00039726,4]
[311188303,1704976278973,-500.0,0.00039726,4]
[311188304,1704976278982,-500.0,0.00039726,4]
[311188305,1704976278990,-500.0,0.00039726,4]
[311188306,1704976279000,-500.0,0.00039726,4]
[311188307,1704976279009,-500.0,0.00039726,4]
[311188308,1704976279019,-500.0,0.00039726,4]
[311188309,1704976279028,-500.0,0.00039726,4]
[311188310,1704976279038,-500.0,0.00039726,4]
[311188311,1704976279047,-500.0,0.00039726,4]
[311188312,1704976279056,-500.0,0.00039726,4]
[311188313,1704976279065,-500.0,0.00039726,4]
[311188314,1704976279074,-835.14,0.00039726,4]
[311188315,1704976279084,-500.0,0.00039726,4]
[311188316,1704976279093,-500.0,0.00039726,4]
[311188317,1704976279102,-500.0,0.00039726,4]
[311188318,1704976279112,-576.25,0.00039726,4]
[311188319,1704976279121,-500.0,0.00039726,4]
[311188320,1704976279131,-500.0,0.00039726,4]
[311188321,1704976279140,-500.0,0.00039726,4]
[311188322,1704976279150,-500.0,0.00039726,4]
[311188323,1704976279159,-500.0,0.00039726,4]
[311188324,1704976279168,-510.86404907,0.00039726,4]
[311188325,1704976279178,-500.0,0.00039726,4]
[311188326,1704976279187,-500.0,0.00039726,4]
[311188327,1704976279197,-500.0,0.00039726,4]
[311188328,1704976279206,-508.06015356,0.00039726,4]
[311188329,1704976279216,-500.0,0.00039726,4]
[311188330,1704976279225,-500.0,0.00039726,4]
[311188331,1704976279234,-500.0,0.00039726,4]
[311188332,1704976279243,-500.0,0.00039726,4]
[311188333,1704976279253,-500.0,0.00039726,4]
[311188334,1704976279262,-500.0,0.00039726,4]
[311188335,1704976279271,-503.3468228,0.00039726,4]
[311188336,1704976279281,-500.0,0.00039726,4]
[311188337,1704976279290,-1146.18,0.00039726,4]
[311188338,1704976279300,-500.0,0.00039726,4]
[311188339,1704976279309,-500.0,0.00039726,4]
[311188340,1704976279318,-500.0,0.00039726,4]
[311188341,1704976279328,-500.0,0.00039726,4]
[311188342,1704976279338,-500.0,0.00039726,4]
[311188343,1704976279347,-500.0,0.00039726,4]
[311188344,1704976279356,-503.43915993,0.00039726,4]
[311188345,1704976279366,-500.0,0.00039726,4]
[311188346,1704976279374,-500.0,0.00039726,4]
[311188347,1704976279384,-503.54717596,0.00039726,4]
[311188348,1704976279393,-500.0,0.00039726,4]
[311188349,1704976279403,-504.01158418,0.00039726,4]
[311188350,1704976279412,-534.9,0.00039726,4]
[311188351,1704976279421,-500.0,0.00039726,4]
[311188352,1704976279431,-500.0,0.00039726,4]
[311188353,1704976279440,-500.0,0.00039726,4]
[311188354,1704976279448,-500.0,0.00039726,4]
[311188355,1704976279459,-642.16,0.00039726,4]
[311188356,1704976279469,-775.91,0.00039726,4]
[311188357,1704976279479,-500.0,0.00039726,4]
[311188358,1704976279488,-501.41388145,0.00039726,4]
[311188359,1704976279498,-10763.91,0.00039726,4]
[311188360,1704976279508,-484.89111251,0.00039726,4]
[311188361,1704976279517,-500.0,0.00039726,4]
[311188362,1704976279526,-500.0,0.00039726,4]
[311188363,1704976279536,-500.0,0.00039726,4]
[311188364,1704976279545,-387.63,0.00039726,4]
[311188365,1704976279555,-500.0,0.00039726,4]
[311188366,1704976279564,-500.0,0.00039726,4]
[311188367,1704976279575,-500.0,0.00039726,4]
[311188368,1704976279584,-500.0,0.00039726,4]
[311188369,1704976279594,-500.0,0.00039726,4]
[311188370,1704976279604,-509.72572351,0.00039726,4]
[311188371,1704976279613,-500.0,0.00039726,4]
[311188372,1704976279622,-500.0,0.00039726,4]
[311188373,1704976279632,-500.0,0.00039726,4]
[311188374,1704976279642,-500.0,0.00039726,4]
[311188375,1704976279651,-500.0,0.00039726,4]
[311188376,1704976279660,-500.0,0.00039726,4]
[311188377,1704976279670,-506.7363503,0.00039726,4]
[311188378,1704976279680,-500.0,0.00039726,4]
[311188379,1704976279689,-500.0,0.00039726,4]
[311188380,1704976279698,-500.0,0.00039726,4]
[311188381,1704976279709,-527.34,0.00039726,4]
[311188382,1704976279719,-500.0,0.00039726,4]
[311188383,1704976279729,-500.0,0.00039726,4]
[311188384,1704976279739,-500.0,0.00039726,4]
[311188385,1704976279749,-500.0,0.00039726,4]
[311188386,1704976279758,-500.0,0.00039726,4]
[311188387,1704976279768,-500.0,0.00039726,4]
[311188388,1704976279777,-500.0,0.00039726,4]
[311188389,1704976279787,-500.0,0.00039726,4]
[311188390,1704976279795,-507.88136022,0.00039726,4]
[311188391,1704976279805,-502.37694584,0.00039726,4]
[311188392,1704976279814,-500.0,0.00039726,4]
[311188393,1704976279823,-500.0,0.00039726,4]
[311188394,1704976279832,-500.0,0.00039726,4]
[311188395,1704976279841,-669.89,0.00039726,4]
[311188396,1704976279850,-1318.87,0.00039726,4]
[311188397,1704976279860,-500.0,0.00039726,4]
[311188398,1704976279869,-500.0,0.00039726,4]
[311188399,1704976279878,-500.0,0.00039726,4]
[311188400,1704976279888,-500.0,0.00039726,4]
[311188401,1704976279897,-500.0,0.00039726,4]
[311188402,1704976279906,-500.0,0.00039726,4]
[311188403,1704976279914,-500.0,0.00039726,4]
[311188404,1704976279923,-500.0,0.00039726,4]
[311188405,1704976279932,-502.83397087,0.00039726,4]
[311188406,1704976279941,-500.0,0.00039726,4]
[311188407,1704976279950,-500.0,0.00039726,4]
[311188408,1704976279961,-633.80321795,0.00039726,4]
[311188409,1704976279970,-2838.19,0.00039726,4]
[311188410,1704976279979,-500.0,0.00039726,4]
[311188411,1704976279988,-500.0,0.00039726,4]
[311188412,1704976279997,-500.0,0.00039726,4]
[311188413,1704976280006,-500.0,0.00039726,4]
[311188414,1704976280015,-3866.26,0.00039726,4]
[311188415,1704976280024,-500.0,0.00039726,4]
[311188416,1704976280033,-500.0,0.00039726,4]
[311188417,1704976280043,-500.0,0.00039726,4]
[311188418,1704976280052,-1706.31,0.00039726,4]
[311188419,1704976280061,-500.0,0.00039726,4]
[311188420,1704976280072,-500.0,0.00039726,4]
[311188421,1704976280081,-686.13,0.00039726,4]
[311188422,1704976280091,-500.0,0.00039726,4]
[311188423,1704976280100,-500.0,0.00039726,4]
[311188424,1704976280109,-500.0,0.00039726,4]
[311188425,1704976280118,-653.27,0.00039726,4]
[311188426,1704976280127,-389.17640725,0.00039726,4]
[311188427,1704976280136,-500.0,0.00039726,4]
[311188428,1704976280145,-504.12432828,0.00039726,4]
[311188429,1704976280155,-500.0,0.00039726,4]
[311188430,1704976280164,-500.0,0.00039726,4]
[311188431,1704976280174,-500.0,0.00039726,4]
[311188432,1704976280183,-500.0,0.00039726,4]
[311188433,1704976280192,-500.0,0.00039726,4]
[311188434,1704976280202,-798.93,0.00039726,4]
[311188435,1704976280212,-500.0,0.00039726,4]
[311188436,1704976280221,-500.0,0.00039726,4]
[311188437,1704976280230,-500.0,0.00039726,4]
[311188438,1704976280240,-512.68608138,0.00039726,4]
[311188439,1704976280249,-500.0,0.00039726,4]
[311188440,1704976280258,-500.0,0.00039726,4]
[311188441,1704976280268,-500.0,0.00039726,4]
[311188442,1704976280277,-500.0,0.00039726,4]
[311188443,1704976280287,-651.34,0.00039726,4]
[311188444,1704976280296,-500.0,0.00039726,4]
[311188445,1704976280305,-500.0,0.00039726,4]
[311188446,1704976280315,-500.0,0.00039726,4]
[311188447,1704976280324,-500.0,0.00039726,4]
[311188448,1704976280333,-500.0,0.00039726,4]
[311188449,1704976280342,-500.0,0.00039726,4]
[311188450,1704976280351,-500.0,0.00039726,4]
[311188451,1704976280360,-500.0,0.00039726,4]
[311188452,1704976280370,-500.0,0.00039726,4]
[311188453,1704976280379,-500.0,0.00039726,4]
[311188454,1704976280388,-500.0,0.00039726,4]
[311188455,1704976280398,-500.0,0.00039726,4]
[311188456,1704976280407,-500.0,0.00039726,4]
[311188457,1704976280416,-500.0,0.00039726,4]
[311188458,1704976280426,-269.52292648,0.00039726,4]
[311188459,1704976280434,-1274.51,0.00039726,4]
[311188460,1704976280445,-500.0,0.00039726,4]
[311188461,1704976280454,-1040.51,0.00039726,4]
[311188462,1704976280463,-500.0,0.00039726,4]
[311188463,1704976280472,-500.0,0.00039726,4]
[311188464,1704976280481,-500.0,0.00039726,4]
[311188465,1704976280491,-500.0,0.00039726,4]
[311188466,1704976280500,-500.0,0.00039726,4]
[311188467,1704976280509,-500.0,0.00039726,4]
[311188468,1704976280518,-500.0,0.00039726,4]
[311188469,1704976280528,-830.69,0.00039726,4]
[311188470,1704976280538,-500.0,0.00039726,4]
[311188471,1704976280547,-506.8750248,0.00039726,4]
[311188472,1704976280557,-500.0,0.00039726,4]
[311188473,1704976280566,-500.0,0.00039726,4]
[311188474,1704976280575,-500.0,0.00039726,4]
[311188475,1704976280585,-500.0,0.00039726,4]
[311188476,1704976280594,-500.0,0.00039726,4]
[311188477,1704976280604,-500.0,0.00039726,4]
[311188478,1704976280613,-500.0,0.00039726,4]
[311188479,1704976280622,-500.0,0.00039726,4]
[311188480,1704976280631,-500.0,0.00039726,4]
[311188481,1704976280640,-500.0,0.00039726,4]
[311188482,1704976280649,-500.0,0.00039726,4]
[311188483,1704976280659,-500.0,0.00039726,4]
[311188484,1704976280668,-500.0,0.00039726,4]
[311188485,1704976280678,-500.0,0.00039726,4]
[311188486,1704976280688,-500.0,0.00039726,4]
[311188487,1704976280698,-617.96,0.00039726,4]
[311188488,1704976280708,-500.0,0.00039726,4]
[311188489,1704976280718,-500.0,0.00039726,4]
[311188490,1704976280728,-500.0,0.00039726,4]
[311188491,1704976280737,-500.0,0.00039726,4]
[311188492,1704976280747,-500.0,0.00039726,4]
[311188493,1704976280756,-511.72753978,0.00039726,4]
[311188494,1704976280765,-500.0,0.00039726,4]
[311188495,1704976280775,-500.0,0.00039726,4]
[311188496,1704976280785,-508.80770974,0.00039726,4]
[311188497,1704976280796,-500.0,0.00039726,4]
[311188498,1704976280805,-1381.12,0.00039726,4]
[311188499,1704976280815,-500.0,0.00039726,4]
[311188500,1704976280824,-615.18,0.00039726,4]
[311188501,1704976280833,-500.0,0.00039726,4]
[311188502,1704976280842,-500.0,0.00039726,4]
[311188503,1704976280851,-2350.74,0.00039726,4]
[311188504,1704976280861,-500.0,0.00039726,4]
[311188505,1704976280870,-500.0,0.00039726,4]
[311188506,1704976280878,-1299.5,0.00039726,4]
[311188507,1704976280888,-500.0,0.00039726,4]
[311188508,1704976280897,-500.0,0.00039726,4]
[311188509,1704976280905,-500.0,0.00039726,4]
[311188510,1704976280914,-500.0,0.00039726,4]
[311188511,1704976280923,-741.46,0.00039726,4]
[311188512,1704976280932,-500.00902039,0.00039726,4]
[311188513,1704976280941,-500.0,0.00039726,4]
[311188514,1704976280950,-500.0,0.00039726,4]
[311188515,1704976280961,-500.0,0.00039726,4]
[311188516,1704976280970,-500.0,0.00039726,4]
[311188517,1704976280979,-500.0,0.00039726,4]
[311188518,1704976280990,-2199.27,0.00039726,4]
[311188519,1704976280999,-500.0,0.00039726,4]
[311188520,1704976281008,-758.86,0.00039726,4]
[311188521,1704976281017,-1445.54,0.00039726,4]
[311188522,1704976281025,-500.0,0.00039726,4]
[311188523,1704976281033,-500.0,0.00039726,4]
[311188524,1704976281042,-500.0,0.00039726,4]
[311188525,1704976281052,-500.0,0.00039726,4]
[311188526,1704976281061,-500.0,0.00039726,4]
[311188527,1704976281070,-500.0,0.00039726,4]
[311188528,1704976281079,-500.0,0.00039726,4]
[311188529,1704976281088,-832.06,0.00039726,4]
[311188530,1704976281098,-500.0,0.00039726,4]
[311188531,1704976281108,-972.63,0.00039726,4]
[311188532,1704976281117,-500.0,0.00039726,4]
[311188533,1704976281127,-500.0,0.00039726,4]
[311188534,1704976281136,-500.0,0.00039726,4]
[311188535,1704976281145,-500.0,0.00039726,4]
[311188536,1704976281155,-500.0,0.00039726,4]
[311188537,1704976281164,-500.0,0.00039726,4]
[311188538,1704976281173,-500.0,0.00039726,4]
[311188539,1704976281183,-500.0,0.00039726,4]
[311188540,1704976281193,-1716.58,0.00039726,4]
[311188541,1704976281202,-500.0,0.00039726,4]
[311188542,1704976281213,-664.52,0.00039726,4]
[311188543,1704976281222,-500.0,0.00039726,4]
[311188544,1704976281232,-500.0,0.00039726,4]
[311188545,1704976281241,-500.0,0.00039726,4]
[311188546,1704976281251,-500.0,0.00039726,4]
[311188547,1704976281260,-500.0,0.00039726,4]
[311188548,1704976281430,-500.0,0.00039726,4]
[311188549,1704976281439,-500.0,0.00039726,4]
[311188550,1704976281449,-776.44,0.00039726,4]
[311188551,1704976281460,-500.0,0.00039726,4]
[311188552,1704976281470,-500.0,0.00039726,4]
[311188553,1704976281479,-500.0,0.00039726,4]
[311188554,1704976281489,-500.0,0.00039726,4]
[311188555,1704976281498,-500.0,0.00039726,4]
[311188556,1704976281507,-190.33364748,0.00039726,4]
[311188557,1704976281516,-767.24,0.00039726,4]
[311188558,1704976281525,-648.46,0.00039726,4]
[311188559,1704976281535,-503.46085459,0.00039726,4]
[311188560,1704976281545,-500.0,0.00039726,5]
[311188561,1704976281555,-500.0,0.00039726,4]
[311188562,1704976281566,-500.0,0.00039726,4]
[311188563,1704976281576,-500.0,0.00039726,4]
[311188564,1704976281585,-500.0,0.00039726,4]
[311188565,1704976281595,-500.0,0.00039726,4]
[311188566,1704976281604,-500.0,0.00039726,4]
[311188567,1704976281614,-511.75021286,0.00039726,4]
[311188568,1704976281623,-500.0,0.00039726,4]
[311188569,1704976281633,-500.0,0.00039726,4]
[311188570,1704976281642,-537.38,0.00039726,4]
[311188571,1704976281651,-500.0,0.00039726,4]
[311188572,1704976281661,-500.0,0.00039726,4]
[311188573,1704976281670,-500.0,0.00039726,4]
[311188574,1704976281680,-500.0,0.00039726,4]
[311188575,1704976281690,-500.0,0.00039726,4]
[311188576,1704976281701,-500.0,0.00039726,4]
[311188577,1704976281712,-500.0,0.00039726,2]
[311188578,1704976281722,-1000.0,0.00039726,4]
[311188579,1704976281731,-500.0,0.00039726,4]
[311188580,1704976281740,-500.0,0.00039726,4]
[311188581,1704976281750,-502.11597329,0.00039726,4]
[311188582,1704976281759,-500.0,0.00039726,4]
[311188583,1704976281769,-1000.0,0.00039726,2]
[311188584,1704976281779,-205.24,0.00039726,4]
[311188585,1704976281788,-500.0,0.00039726,4]
[311188586,1704976281798,-500.0,0.00039726,4]
[311188587,1704976281807,-500.0,0.00039726,4]
[311188588,1704976281817,-255.210081,0.00039726,7]
[311188589,1704976281826,-172.088388,0.00039726,7]
[311188590,1704976281835,-241.460575,0.00039726,7]
[311188591,1704976281844,-241.460575,0.00039726,7]
[311188592,1704976281853,-151.0,0.00039726,7]
[311188593,1704976281862,-162.583023,0.00039726,7]
[311188594,1704976281872,-151.0,0.00039726,7]
[311188595,1704976281881,-151.0,0.00039726,7]
[311188596,1704976281890,-151.0,0.00039726,7]
[311188597,1704976281899,-151.0,0.00039726,7]
[311188598,1704976281909,-151.0,0.00039726,7]
[311188599,1704976281917,-151.0,0.00039726,7]
[311188600,1704976281926,-199.547118,0.00039726,7]
[311188601,1704976281936,-280.008321,0.00039726,7]
[311188602,1704976281945,-280.008321,0.00039726,7]
[311188603,1704976281955,-776.104603,0.00039726,7]
[311188604,1704976281965,-776.104603,0.00039726,7]
[311188605,1704976281975,-150.0,0.00039743,2]
[311188606,1704976281985,-167.63778095,0.00039745,7]
[311188607,1704976281994,-1576.93544616,0.00039757,9]
[311188608,1704976282003,-150.0,0.0003976,2]
[311188609,1704976282013,-150.0,0.00039786,2]
[311188610,1704976282022,-158.15,0.00039797,2]
[311188611,1704976282031,-150.0,0.00039799,2]
[311188612,1704976282040,-209.0,0.0003981,2]
[311188613,1704976282049,-210.0,0.0003981,2]
[311188614,1704976282059,-205.0,0.00039824,7]
[311188615,1704976282068,-4820.58202475,0.00039829,2]
[311188616,1704976282078,-665.7765632,0.00039829,2]
[311188617,1704976282087,-1637.8204338,0.00039829,2]
[311188618,1704976282096,-256.69672214,0.00039847,2]
[311188619,1704976282106,-150.0,0.0003985,2]
[311188620,1704976282115,-809.93,0.00039856,2]
[311188621,1704976282124,-958.12,0.00039856,2]
[311188622,1704976282134,-666.40111,0.00039898,8]
[311188623,1704976282143,-776.64,0.00039899,4]
[311188624,1704976282152,-153.32,0.000399,2]
[311188625,1704976282161,-200.55854945,0.000399,2]
[311188626,1704976282170,-18541.08493649,0.000399,7]
[311188627,1704976282179,-2604.56002986,0.000399,2]
[311188628,1704976282188,-5869.69631105,0.00039911,13]
[311188629,1704976282198,-572.27,0.00039922,2]
[311188630,1704976282208,-800.0,0.00039941,2]
[311188631,1704976282217,-221.9008964,0.00039971,31]
[311188632,1704976282229,-200.0,0.0003999,7]
[311188633,1704976282238,-3774.0,0.0003999,3]
[311188634,1704976282247,-200.0,0.0003999,7]
[311188635,1704976282256,-364.04147327,0.00039999,4]
[311188636,1704976282265,-408.88284349,0.00039999,4]
[311188637,1704976282274,-338.74674118,0.00039999,4]
[311188638,1704976282282,-526.3,0.00039999,4]
[311188639,1704976282291,-526.3,0.00039999,4]
[311188640,1704976282300,-526.3,0.00039999,4]
[311188641,1704976282309,-526.3,0.00039999,4]
[311188642,1704976282319,-526.3,0.00039999,4]
[311188643,1704976282328,-526.3,0.00039999,4]
[311188644,1704976282337,-526.42,0.00039999,4]
[311188645,1704976282346,-776.64,0.00039999,4]
[311188646,1704976282356,-776.64,0.00039999,4]
[311188647,1704976282365,-776.64,0.00039999,4]
[311188648,1704976282374,-776.64,0.00039999,4]
[311188649,1704976282383,-150.0,0.00039999,2]
[311188650,1704976282392,-150.0,0.00039999,2]
[311188651,1704976282401,-150.0,0.00039999,2]
[311188652,1704976282411,-150.0,0.00039999,2]
[311188653,1704976282420,-228.775545,0.0004,7]
[311188654,1704976282429,-151.0,0.0004,7]
[311188655,1704976282438,-243.0998,0.0004,7]
[311188656,1704976282447,-280.008321,0.0004,7]
[311188657,1704976282457,-280.008321,0.0004,7]
[311188658,1704976282469,-776.104603,0.0004,7]
[311188659,1704976282479,-776.104603,0.0004,7]
[311188660,1704976282489,-457091.33027018,0.0004,3]
[311188661,1704976282498,-2000.00000321,0.0004,30]
[311188662,1704976282507,-1000.0,0.0004,10]
[311188663,1704976282517,-630.11021267,0.0004,2]
[311188664,1704976282526,-1000.0,0.0004,10]
[311188665,1704976282535,-487520.18209383,0.0004,15]
[311188666,1704976282545,-1195.75686936,0.0004,2]
[311188667,1704976282555,-196.14559765,0.0004,4]
[311188668,1704976282564,-161.24588733,0.0004,2]
[311188669,1704976282574,-2378.84975636,0.0004,4]
[311188670,1704976282584,-1214.0,0.0004,10]
[311188671,1704976282593,-1000.0,0.0004,50]
[311188672,1704976282602,-10137.68941148,0.0004,30]
[311188673,1704976282611,-32657.00385933,0.0004,120]
[311188674,1704976282621,-255.0,0.0004,12]
[311188675,1704976282631,-175.21914469,0.0004,12]
[311188676,1704976282640,-2010.44772905,0.0004,4]
[311188677,1704976282649,-241.460575,0.0004,7]
[311188678,1704976282658,-241.460575,0.0004,7]
[311188679,1704976282668,-500.0,0.0004,4]
[311188680,1704976282677,-506.1571591,0.0004,4]
[311188681,1704976282686,-500.0,0.0004,4]
[311188682,1704976282696,-500.0,0.0004,4]
[311188683,1704976282706,-500.0,0.0004,4]
[311188684,1704976282729,-514.53381136,0.0004,4]
[311188685,1704976282738,-508.91921037,0.0004,4]
[311188686,1704976282747,-500.0,0.0004,4]
[311188687,1704976282757,-500.0,0.0004,4]
[311188688,1704976282767,-287.07853379,0.0004,4]
[311188689,1704976282776,-507.33165292,0.0004,4]
[311188690,1704976282786,-506.99726037,0.0004,4]
[311188691,1704976282795,-510.55954918,0.0004,4]
[311188692,1704976282804,-500.0,0.0004,4]
[311188693,1704976282814,-500.0,0.0004,4]
[311188694,1704976282823,-500.0,0.0004,4]
[311188695,1704976282832,-511.07464106,0.0004,4]
[311188696,1704976282841,-500.0,0.0004,4]
[311188697,1704976282850,-500.0,0.0004,4]
[311188698,1704976282859,-500.0,0.0004,4]
[311188699,1704976282868,-500.0,0.0004,4]
[311188700,1704976282878,-500.0,0.0004,4]
[311188701,1704976282887,-500.0,0.0004,4]
[311188702,1704976282897,-507.38861276,0.0004,4]
[311188703,1704976282905,-504.45494227,0.0004,4]
[311188704,1704976282914,-500.0,0.0004,4]
[311188705,1704976282923,-500.0,0.0004,4]
[311188706,1704976282932,-500.0,0.0004,4]
[311188707,1704976282940,-510.01927453,0.0004,4]
[311188708,1704976282949,-500.0,0.0004,4]
[311188709,1704976282958,-509.01358101,0.0004,4]
[311188710,1704976282967,-500.0,0.0004,4]
[311188711,1704976282976,-500.0,0.0004,4]
[311188712,1704976282985,-508.30400952,0.0004,4]
[311188713,1704976282994,-510.84646099,0.0004,4]
[311188714,1704976283004,-500.0,0.0004,4]
[311188715,1704976283013,-500.0,0.0004,4]
[311188716,1704976283022,-500.0,0.0004,4]
[311188717,1704976283030,-503.00679631,0.0004,4]
[311188718,1704976283039,-150.000002,0.0004,24]
[311188719,1704976283049,-507.18698938,0.0004,4]
[311188720,1704976283057,-500.0,0.0004,4]
[311188721,1704976283066,-517.19499528,0.0004,4]
[311188722,1704976283076,-509.43154168,0.0004,4]
[311188723,1704976283085,-511.2333663,0.0004,4]
[311188724,1704976283093,-502.9407114,0.0004,4]
[311188725,1704976283102,-591.12,0.0004,4]
[311188726,1704976283111,-500.0,0.0004,4]
[311188727,1704976283120,-500.0,0.0004,4]
[311188728,1704976283130,-500.0,0.0004,4]
[311188729,1704976283138,-571.6180426,0.0004,4]
[311188730,1704976283147,-500.0,0.0004,4]
[311188731,1704976283156,-500.0,0.0004,4]
[311188732,1704976283165,-504.41216284,0.0004,4]
[311188733,1704976283173,-500.0,0.0004,4]
[311188734,1704976283182,-500.0,0.0004,4]
[311188735,1704976283191,-500.0,0.0004,4]
[311188736,1704976283200,-261.57,0.0004,4]
[311188737,1704976283210,-514.72449422,0.0004,4]
[311188738,1704976283219,-500.0,0.0004,4]
[311188739,1704976283228,-575.42377125,0.0004,4]
[311188740,1704976283237,-500.0,0.0004,4]
[311188741,1704976283246,-508.70199194,0.0004,4]
[311188742,1704976283255,-500.0,0.0004,4]
[311188743,1704976283264,-500.0,0.0004,10]
[311188744,1704976283273,-499.0,0.0004,4]
[311188745,1704976283282,-511.50360793,0.0004,4]
[311188746,1704976283291,-500.0,0.0004,4]
[311188747,1704976283299,-500.0,0.0004,4]
[311188748,1704976283308,-518.55421908,0.0004,4]
[311188749,1704976283317,-500.0,0.0004,4]
[311188750,1704976283325,-501.19355667,0.0004,4]
[311188751,1704976283334,-500.0,0.0004,4]
[311188752,1704976283342,-500.0,0.0004,4]
[311188753,1704976283352,-504.66338947,0.0004,4]
[311188754,1704976283361,-500.0,0.0004,4]
[311188755,1704976283369,-500.0,0.0004,4]
[311188756,1704976283379,-500.0,0.0004,4]
[311188757,1704976283388,-503.89559977,0.0004,4]
[311188758,1704976283397,-503.65363943,0.0004,4]
[311188759,1704976283406,-233.82,0.0004,4]
[311188760,1704976283415,-500.0,0.0004,4]
[311188761,1704976283424,-500.0,0.0004,4]
[311188762,1704976283433,-500.0,0.0004,4]
[311188763,1704976283442,-500.0,0.0004,4]
[311188764,1704976283451,-500.0,0.0004,4]
[311188765,1704976283460,-500.0,0.0004,4]
[311188766,1704976283469,-505.04660697,0.0004,4]
[311188767,1704976283478,-500.0,0.0004,4]
[311188768,1704976283487,-503.24648716,0.0004,4]